[Event "FIDE U16 Olympiad_boards_81-124"]
[Site "Eindhoven, Netherlands"]
[Date "2023.08.14"]
[Round "2.1"]
[White "Kannappan, Thanneermalai"]
[Black "Assylov, Miras"]
[Result "1/2-1/2"]
[TimeControl "45min+10sec"]
[WhiteElo "1713"]
[BlackElo "2047"]

1. e4 {[%clk 00:45:17]} {[%emt 00:00:03]} c6 {[%clk 00:45:19]} {[%emt
00:00:03]} 2. d4 {[%clk 00:45:25]} d5 {[%clk 00:45:27]} {[%emt 00:00:02]} 3.
exd5 {[%clk 00:45:27]} {[%emt 00:00:08]} cxd5 {[%clk 00:45:34]} {[%emt
00:00:02]} 4. c4 {[%clk 00:45:25]} {[%emt 00:00:12]} Nf6 {[%clk 00:45:37]}
{[%emt 00:00:08]} 5. Nc3 {[%clk 00:45:29]} {[%emt 00:00:05]} e6 {[%clk
00:45:45]} {[%emt 00:00:03]} 6. Nf3 {[%clk 00:45:23]} {[%emt 00:00:15]} Bb4
{[%clk 00:45:52]} {[%emt 00:00:03]} 7. cxd5 {[%clk 00:45:20]} {[%emt 00:00:14]}
Nxd5 {[%clk 00:46:00]} {[%emt 00:00:02]} 8. Qc2 {[%clk 00:45:28]} {[%emt
00:00:01]} Nc6 {[%clk 00:44:27]} {[%emt 00:01:43]} 9. Bd3 {[%clk 00:45:29]}
{[%emt 00:00:09]} Ba5 {[%clk 00:42:49]} {[%emt 00:01:48]} 10. a3 {[%clk
00:45:38]} {[%emt 00:00:02]} h6 {[%clk 00:42:57]} {[%emt 00:00:02]} 11. O-O
{[%clk 00:44:19]} {[%emt 00:01:26]} O-O {[%clk 00:41:36]} {[%emt 00:01:33]} 12.
Bd2 {[%clk 00:33:43]} {[%emt 00:10:46]} Bb6 {[%clk 00:38:03]} {[%emt 00:03:43]}
13. Rad1 {[%clk 00:29:11]} {[%emt 00:04:43]} Nce7 {[%clk 00:29:48]} {[%emt
00:08:25]} 14. Na4 {[%clk 00:26:38]} {[%emt 00:02:42]} Bc7 {[%clk 00:29:23]}
{[%emt 00:00:35]} 15. Ne5 {[%clk 00:23:25]} {[%emt 00:03:23]} b6 {[%clk
00:27:43]} {[%emt 00:01:51]} 16. f4 {[%clk 00:18:52]} {[%emt 00:04:43]} Bb7
{[%clk 00:23:58]} {[%emt 00:03:55]} 17. Nc3 {[%clk 00:17:06]} {[%emt 00:01:55]}
Rc8 {[%clk 00:21:15]} {[%emt 00:02:53]} 1/2-1/2

[Event "FIDE U16 Olympiad_boards_81-124"]
[Site "Eindhoven, Netherlands"]
[Date "2023.08.14"]
[Round "2.2"]
[White "Mukhametkali, Merey"]
[Black "Poon, Pak Yu"]
[Result "1-0"]
[TimeControl "45min+10sec"]
[WhiteElo "1792"]
[BlackElo "1268"]

1. d4 {[%clk 00:45:16]} {[%emt 00:00:02]} Nf6 {[%clk 00:45:19]} {[%emt
00:00:02]} 2. c4 {[%clk 00:45:19]} {[%emt 00:00:07]} g6 {[%clk 00:45:27]}
{[%emt 00:00:02]} 3. h4 {[%clk 00:45:21]} {[%emt 00:00:08]} Bg7 {[%clk
00:45:33]} {[%emt 00:00:04]} 4. Nc3 {[%clk 00:45:25]} {[%emt 00:00:06]} d5
{[%clk 00:45:40]} {[%emt 00:00:02]} 5. h5 {[%clk 00:45:30]} {[%emt 00:00:06]}
gxh5 {[%clk 00:41:00]} {[%emt 00:04:50]} 6. cxd5 {[%clk 00:43:42]} {[%emt
00:01:57]} Nxd5 {[%clk 00:41:01]} {[%emt 00:00:10]} 7. Nf3 {[%clk 00:41:55]}
{[%emt 00:01:56]} Nxc3 {[%clk 00:39:38]} {[%emt 00:01:34]} 8. bxc3 {[%clk
00:42:03]} {[%emt 00:00:02]} Bg4 {[%clk 00:39:37]} {[%emt 00:00:11]} 9. Qb3
{[%clk 00:32:55]} {[%emt 00:09:17]} b6 {[%clk 00:36:03]} {[%emt 00:03:44]} 10.
Ng5 {[%clk 00:32:36]} {[%emt 00:00:29]} e6 {[%clk 00:36:10]} {[%emt 00:00:04]}
11. f3 {[%clk 00:30:45]} {[%emt 00:02:01]} Bf5 {[%clk 00:36:15]} {[%emt
00:00:05]} 12. Rxh5 {[%clk 00:30:36]} {[%emt 00:00:19]} Bg6 {[%clk 00:36:13]}
{[%emt 00:00:12]} 13. Rh1 {[%clk 00:27:58]} {[%emt 00:02:47]} c5 {[%clk
00:35:07]} {[%emt 00:01:16]} 14. e4 {[%clk 00:15:45]} {[%emt 00:12:24]} cxd4
{[%clk 00:33:30]} {[%emt 00:01:47]} 15. Nxe6 {[%clk 00:13:28]} {[%emt
00:02:28]} fxe6 {[%clk 00:33:14]} {[%emt 00:00:25]} 16. Qxe6+ {[%clk 00:13:36]}
{[%emt 00:00:02]} Qe7 {[%clk 00:33:06]} {[%emt 00:00:18]} 17. Bb5+ {[%clk
00:13:41]} {[%emt 00:00:04]} Kf8 {[%clk 00:33:01]} {[%emt 00:00:15]} 18. Qc8+
{[%clk 00:13:19]} {[%emt 00:00:32]} Kf7 {[%clk 00:32:00]} {[%emt 00:01:12]} 19.
Bc4+ {[%clk 00:13:22]} {[%emt 00:00:08]} Kf6 {[%clk 00:32:01]} {[%emt
00:00:08]} 20. Bg5+ {[%clk 00:13:24]} {[%emt 00:00:08]} Kxg5 {[%clk 00:31:58]}
{[%emt 00:00:13]} 21. Qg4+ {[%clk 00:13:32]} {[%emt 00:00:01]} 1-0

[Event "FIDE U16 Olympiad_boards_81-124"]
[Site "Eindhoven, Netherlands"]
[Date "2023.08.14"]
[Round "2.3"]
[White "Li, Joy Ching"]
[Black "Tleukhanov, Yerlan"]
[Result "0-1"]
[TimeControl "45min+10sec"]
[WhiteElo "1401"]
[BlackElo "1901"]

1. Nf3 {[%clk 00:45:18]} {[%emt 00:00:01]} Nf6 {[%clk 00:45:09]} {[%emt
00:00:12]} 2. g3 {[%clk 00:45:23]} {[%emt 00:00:05]} g6 {[%clk 00:45:11]}
{[%emt 00:00:07]} 3. Bg2 {[%clk 00:45:29]} {[%emt 00:00:04]} Bg7 {[%clk
00:45:18]} {[%emt 00:00:03]} 4. O-O {[%clk 00:45:35]} {[%emt 00:00:05]} O-O
{[%clk 00:45:19]} {[%emt 00:00:09]} 5. c4 {[%clk 00:45:42]} {[%emt 00:00:02]}
c6 {[%clk 00:45:09]} {[%emt 00:00:20]} 6. d4 {[%clk 00:45:47]} {[%emt
00:00:05]} d5 {[%clk 00:45:17]} {[%emt 00:00:02]} 7. cxd5 {[%clk 00:45:48]}
{[%emt 00:00:10]} cxd5 {[%clk 00:45:24]} {[%emt 00:00:02]} 8. Nc3 {[%clk
00:45:45]} {[%emt 00:00:13]} Ne4 {[%clk 00:44:45]} {[%emt 00:00:49]} 9. Qb3
{[%clk 00:43:11]} {[%emt 00:02:45]} Nc6 {[%clk 00:43:43]} {[%emt 00:01:12]} 10.
e3 {[%clk 00:40:49]} {[%emt 00:02:31]} Nxc3 {[%clk 00:41:57]} {[%emt 00:01:57]}
11. Qxc3 {[%clk 00:40:24]} {[%emt 00:00:35]} Bf5 {[%clk 00:41:30]} {[%emt
00:00:36]} 12. Bd2 {[%clk 00:38:23]} {[%emt 00:02:11]} Be4 {[%clk 00:36:39]}
{[%emt 00:05:01]} 13. Qb3 {[%clk 00:35:51]} {[%emt 00:02:43]} Qd7 {[%clk
00:36:07]} {[%emt 00:00:42]} 14. Bc3 {[%clk 00:34:05]} {[%emt 00:01:55]} Rad8
{[%clk 00:26:06]} {[%emt 00:10:11]} 15. Rac1 {[%clk 00:32:22]} {[%emt
00:01:53]} f6 {[%clk 00:23:58]} {[%emt 00:02:18]} 16. Rfd1 {[%clk 00:29:48]}
{[%emt 00:02:45]} Kh8 {[%clk 00:23:45]} {[%emt 00:00:22]} 17. Ne1 {[%clk
00:21:39]} {[%emt 00:08:19]} Bxg2 {[%clk 00:22:41]} {[%emt 00:01:15]} 18. Kxg2
{[%clk 00:21:44]} {[%emt 00:00:04]} e5 {[%clk 00:17:16]} {[%emt 00:05:36]} 19.
Nd3 {[%clk 00:21:13]} {[%emt 00:00:40]} b6 {[%clk 00:14:18]} {[%emt 00:03:09]}
20. Nb4 {[%clk 00:19:12]} {[%emt 00:02:10]} Na5 {[%clk 00:14:05]} {[%emt
00:00:23]} 21. Qc2 {[%clk 00:18:30]} {[%emt 00:00:52]} e4 {[%clk 00:14:11]}
{[%emt 00:00:04]} 22. b3 {[%clk 00:17:48]} {[%emt 00:00:53]} g5 {[%clk
00:12:45]} {[%emt 00:01:35]} 23. h3 {[%clk 00:16:29]} {[%emt 00:01:29]} f5
{[%clk 00:12:34]} {[%emt 00:00:22]} 24. Qe2 {[%clk 00:15:27]} {[%emt 00:01:12]}
f4 {[%clk 00:11:52]} {[%emt 00:00:51]} 25. Qh5 {[%clk 00:15:15]} {[%emt
00:00:21]} h6 {[%clk 00:10:02]} {[%emt 00:02:01]} 26. exf4 {[%clk 00:13:39]}
{[%emt 00:01:47]} gxf4 {[%clk 00:10:07]} {[%emt 00:00:04]} 27. Bd2 {[%clk
00:13:12]} {[%emt 00:00:37]} Rf5 {[%clk 00:08:02]} {[%emt 00:02:16]} 28. Qh4
{[%clk 00:12:17]} {[%emt 00:01:04]} e3 {[%clk 00:06:41]} {[%emt 00:01:32]} 29.
fxe3 {[%clk 00:11:32]} {[%emt 00:00:54]} fxg3 {[%clk 00:06:40]} {[%emt
00:00:11]} 30. Rf1 {[%clk 00:10:37]} {[%emt 00:01:05]} Rdf8 {[%clk 00:06:41]}
{[%emt 00:00:10]} 31. Rxf5 {[%clk 00:09:39]} {[%emt 00:01:08]} Qxf5 {[%clk
00:06:48]} {[%emt 00:00:03]} 32. Qxg3 {[%clk 00:09:26]} {[%emt 00:00:22]} Bxd4
{[%clk 00:04:45]} {[%emt 00:02:13]} 33. Qf4 {[%clk 00:07:28]} {[%emt 00:02:09]}
Rg8+ {[%clk 00:04:40]} {[%emt 00:00:14]} 34. Kf1 {[%clk 00:06:22]} {[%emt
00:01:16]} Qxh3+ {[%clk 00:04:13]} {[%emt 00:00:38]} 35. Ke2 {[%clk 00:05:57]}
{[%emt 00:00:34]} Qh5+ {[%clk 00:03:54]} {[%emt 00:00:29]} 36. Kd3 {[%clk
00:04:51]} {[%emt 00:01:15]} Bg7 {[%clk 00:02:41]} {[%emt 00:01:24]} 37. Bc3
{[%clk 00:03:25]} {[%emt 00:01:36]} Qg6+ {[%clk 00:01:34]} {[%emt 00:01:17]} 38.
Ke2 {[%clk 00:02:38]} {[%emt 00:00:57]} Qg2+ {[%clk 00:01:09]} {[%emt
00:00:35]} 39. Kd1 {[%clk 00:01:39]} {[%emt 00:01:10]} Qh1+ {[%clk 00:00:22]}
{[%emt 00:00:56]} 40. Ke2 {[%clk 00:01:19]} {[%emt 00:00:30]} Qg2+ {[%clk
00:00:29]} {[%emt 00:00:03]} 41. Kd1 {[%clk 00:01:22]} {[%emt 00:00:07]} Qh1+
{[%clk 00:00:21]} {[%emt 00:00:19]} 42. Ke2 {[%clk 00:01:28]} {[%emt 00:00:03]}
Qh5+ {[%clk 00:00:28]} {[%emt 00:00:03]} 43. Kd3 {[%clk 00:01:15]} {[%emt
00:00:22]} Qg6+ {[%clk 00:00:28]} {[%emt 00:00:12]} 44. Ke2 {[%clk 00:01:12]}
{[%emt 00:00:12]} Qh5+ {[%clk 00:00:16]} {[%emt 00:00:22]} 45. Kd3 {[%clk
00:01:02]} {[%emt 00:00:20]} Nb7 {[%clk 00:00:20]} {[%emt 00:00:07]} 46. Rg1
{[%clk 00:00:26]} {[%emt 00:00:46]} Nc5+ {[%clk 00:00:20]} {[%emt 00:00:10]} 47.
Kc2 {[%clk 00:00:27]} {[%emt 00:00:08]} Qe2+ {[%clk 00:00:24]} {[%emt
00:00:06]} 48. Bd2 {[%clk 00:00:25]} {[%emt 00:00:13]} Ne4 {[%clk 00:00:23]}
{[%emt 00:00:10]} 49. Rd1 {[%clk 00:00:13]} {[%emt 00:00:22]} Rc8+ {[%clk
00:00:28]} {[%emt 00:00:06]} 50. Kb1 {[%clk 00:00:14]} {[%emt 00:00:09]} Qxd1+
{[%clk 00:00:36]} {[%emt 00:00:02]} 0-1

[Event "FIDE U16 Olympiad_boards_81-124"]
[Site "Eindhoven, Netherlands"]
[Date "2023.08.14"]
[Round "2.4"]
[White "Madi, Aidana"]
[Black "Fan, Wen Xi"]
[Result "1-0"]
[TimeControl "45min+10sec"]
[WhiteElo "1499"]
[BlackElo "1281"]

1. e4 {[%clk 00:45:17]} {[%emt 00:00:02]} c5 {[%clk 00:45:18]} {[%emt
00:00:02]} 2. Nf3 {[%clk 00:45:16]} {[%emt 00:00:11]} a6 {[%clk 00:45:26]}
{[%emt 00:00:03]} 3. d4 {[%clk 00:45:20]} {[%emt 00:00:06]} cxd4 {[%clk
00:45:11]} {[%emt 00:00:25]} 4. Nxd4 {[%clk 00:45:29]} {[%emt 00:00:01]} Nc6
{[%clk 00:45:18]} {[%emt 00:00:03]} 5. Nc3 {[%clk 00:45:05]} {[%emt 00:00:33]}
Nf6 {[%clk 00:44:44]} {[%emt 00:00:44]} 6. Nxc6 {[%clk 00:43:59]} {[%emt
00:01:17]} dxc6 {[%clk 00:44:45]} {[%emt 00:00:09]} 7. Qxd8+ {[%clk 00:41:34]}
{[%emt 00:02:35]} Kxd8 {[%clk 00:44:52]} {[%emt 00:00:03]} 8. Bf4 {[%clk
00:40:14]} {[%emt 00:01:30]} Bg4 {[%clk 00:41:20]} {[%emt 00:03:41]} 9. f3
{[%clk 00:40:10]} {[%emt 00:00:14]} Bh5 {[%clk 00:41:27]} {[%emt 00:00:03]} 10.
Na4 {[%clk 00:36:18]} {[%emt 00:04:03]} Nd7 {[%clk 00:41:16]} {[%emt 00:00:20]}
11. O-O-O {[%clk 00:36:16]} {[%emt 00:00:13]} Ke8 {[%clk 00:40:59]} {[%emt
00:00:26]} 12. Rxd7 {[%clk 00:34:17]} {[%emt 00:02:09]} Kxd7 {[%clk 00:38:36]}
{[%emt 00:02:33]} 13. Nb6+ {[%clk 00:34:25]} {[%emt 00:00:02]} Kd8 {[%clk
00:38:09]} {[%emt 00:00:37]} 14. Nxa8 {[%clk 00:34:31]} {[%emt 00:00:04]} g5
{[%clk 00:35:16]} {[%emt 00:03:04]} 15. Bxg5 {[%clk 00:30:39]} {[%emt
00:04:02]} f6 {[%clk 00:34:36]} {[%emt 00:00:50]} 16. Be3 {[%clk 00:30:38]}
{[%emt 00:00:11]} b5 {[%clk 00:34:06]} {[%emt 00:00:39]} 17. a4 {[%clk
00:29:23]} {[%emt 00:01:25]} Kc8 {[%clk 00:32:15]} {[%emt 00:02:00]} 18. Nb6+
{[%clk 00:29:31]} {[%emt 00:00:04]} Kc7 {[%clk 00:32:20]} {[%emt 00:00:03]} 19.
axb5 {[%clk 00:27:31]} {[%emt 00:02:11]} axb5 {[%clk 00:31:43]} {[%emt
00:00:48]} 20. c4 {[%clk 00:27:39]} {[%emt 00:00:02]} Bh6 {[%clk 00:26:21]}
{[%emt 00:05:31]} 21. Bxh6 {[%clk 00:26:56]} {[%emt 00:00:53]} Kxb6 {[%clk
00:26:28]} {[%emt 00:00:03]} 22. Be3+ {[%clk 00:24:50]} {[%emt 00:02:17]} Ka6
{[%clk 00:26:07]} {[%emt 00:00:31]} 23. Be2 {[%clk 00:24:38]} {[%emt 00:00:22]}
Bf7 {[%clk 00:25:51]} {[%emt 00:00:26]} 24. b3 {[%clk 00:24:40]} {[%emt
00:00:08]} Rg8 {[%clk 00:24:40]} {[%emt 00:01:20]} 25. g3 {[%clk 00:24:16]}
{[%emt 00:00:35]} bxc4 {[%clk 00:24:05]} {[%emt 00:00:44]} 26. Bxc4+ {[%clk
00:24:09]} {[%emt 00:00:18]} Bxc4 {[%clk 00:24:12]} {[%emt 00:00:02]} 27. bxc4
{[%clk 00:24:18]} Ka5 {[%clk 00:23:53]} {[%emt 00:00:28]} 28. Bc5 {[%clk
00:23:39]} {[%emt 00:00:52]} Re8 {[%clk 00:23:12]} {[%emt 00:00:50]} 29. Kc2
{[%clk 00:23:44]} {[%emt 00:00:06]} Ka6 {[%clk 00:23:21]} {[%emt 00:00:01]} 30.
Ra1+ {[%clk 00:23:48]} {[%emt 00:00:06]} Kb7 {[%clk 00:23:29]} {[%emt
00:00:01]} 31. Ra7+ {[%clk 00:23:51]} {[%emt 00:00:07]} Kc8 {[%clk 00:23:37]}
{[%emt 00:00:03]} 32. Rxe7 {[%clk 00:23:36]} {[%emt 00:00:25]} Rxe7 {[%clk
00:23:43]} {[%emt 00:00:05]} 33. Bxe7 {[%clk 00:23:44]} Kd7 {[%clk 00:23:50]}
{[%emt 00:00:02]} 34. Bxf6 {[%clk 00:23:52]} {[%emt 00:00:02]} Ke6 {[%clk
00:23:58]} {[%emt 00:00:02]} 35. e5 {[%clk 00:23:56]} {[%emt 00:00:07]} h5
{[%clk 00:24:05]} {[%emt 00:00:03]} 36. Kd3 {[%clk 00:23:59]} {[%emt 00:00:06]}
c5 {[%clk 00:24:12]} {[%emt 00:00:03]} 37. Ke4 {[%clk 00:24:06]} {[%emt
00:00:04]} Kf7 {[%clk 00:24:19]} {[%emt 00:00:02]} 38. Kf5 {[%clk 00:24:14]}
{[%emt 00:00:03]} Kf8 {[%clk 00:24:27]} {[%emt 00:00:02]} 39. g4 {[%clk
00:24:12]} {[%emt 00:00:12]} hxg4 {[%clk 00:24:30]} {[%emt 00:00:07]} 40. fxg4
{[%clk 00:24:20]} {[%emt 00:00:02]} Kf7 {[%clk 00:24:39]} {[%emt 00:00:01]} 41.
g5 {[%clk 00:24:24]} {[%emt 00:00:06]} Kf8 {[%clk 00:24:47]} {[%emt 00:00:01]}
42. e6 {[%clk 00:24:22]} {[%emt 00:00:12]} Kg8 {[%clk 00:24:47]} {[%emt
00:00:10]} 43. g6 {[%clk 00:23:46]} {[%emt 00:00:47]} Kf8 {[%clk 00:24:55]}
{[%emt 00:00:02]} 44. g7+ {[%clk 00:23:45]} {[%emt 00:00:10]} Kg8 {[%clk
00:25:02]} {[%emt 00:00:04]} 45. e7 {[%clk 00:23:51]} {[%emt 00:00:04]} Kf7
{[%clk 00:25:10]} {[%emt 00:00:02]} 46. g8=Q+ {[%clk 00:23:53]} {[%emt
00:00:08]} Kxg8 {[%clk 00:25:16]} {[%emt 00:00:03]} 47. e8=Q+ {[%clk 00:23:58]}
{[%emt 00:00:05]} Kh7 {[%clk 00:25:25]} {[%emt 00:00:02]} 48. Qg6# {[%clk
00:24:06]} {[%emt 00:00:02]} 1-0

[Event "FIDE U16 Olympiad_boards_81-124"]
[Site "Eindhoven, Netherlands"]
[Date "2023.08.14"]
[Round "2.5"]
[White "Huang, Youhe"]
[Black "Siva Kumar, Nirish Kumar"]
[Result "1-0"]
[TimeControl "45min+10sec"]
[WhiteElo "1849"]
[BlackElo "1613"]

1. e4 {[%clk 00:45:17]} {[%emt 00:00:02]} c5 {[%clk 00:45:13]} {[%emt
00:00:07]} 2. Nc3 {[%clk 00:45:24]} {[%emt 00:00:04]} Nc6 {[%clk 00:45:19]}
{[%emt 00:00:04]} 3. Nf3 {[%clk 00:45:15]} {[%emt 00:00:19]} e5 {[%clk
00:45:27]} {[%emt 00:00:01]} 4. g3 {[%clk 00:44:55]} {[%emt 00:00:31]} Be7
{[%clk 00:45:18]} {[%emt 00:00:19]} 5. Bg2 {[%clk 00:44:43]} {[%emt 00:00:22]}
Nf6 {[%clk 00:45:25]} {[%emt 00:00:02]} 6. d3 {[%clk 00:44:36]} {[%emt
00:00:19]} d6 {[%clk 00:45:33]} 7. h3 {[%clk 00:44:42]} {[%emt 00:00:04]} h6
{[%clk 00:45:36]} {[%emt 00:00:07]} 8. O-O {[%clk 00:44:43]} {[%emt 00:00:08]}
Be6 {[%clk 00:44:32]} {[%emt 00:01:15]} 9. a3 {[%clk 00:43:49]} {[%emt
00:01:03]} a6 {[%clk 00:44:07]} {[%emt 00:00:36]} 10. Nd2 {[%clk 00:43:13]}
{[%emt 00:00:46]} Qd7 {[%clk 00:43:46]} {[%emt 00:00:32]} 11. Kh2 {[%clk
00:43:18]} {[%emt 00:00:04]} g5 {[%clk 00:43:47]} {[%emt 00:00:08]} 12. Nc4
{[%clk 00:43:12]} {[%emt 00:00:16]} Qc7 {[%clk 00:41:56]} {[%emt 00:02:01]} 13.
Nd5 {[%clk 00:43:08]} {[%emt 00:00:15]} Bxd5 {[%clk 00:41:51]} {[%emt
00:00:15]} 14. exd5 {[%clk 00:43:16]} {[%emt 00:00:02]} Nd4 {[%clk 00:40:38]}
{[%emt 00:01:22]} 15. Ne3 {[%clk 00:42:11]} {[%emt 00:01:15]} Qd7 {[%clk
00:39:35]} {[%emt 00:01:14]} 16. Be4 {[%clk 00:42:01]} {[%emt 00:00:20]} g4
{[%clk 00:37:22]} {[%emt 00:02:23]} 17. c3 {[%clk 00:41:03]} {[%emt 00:01:09]}
Nxe4 {[%clk 00:37:07]} {[%emt 00:00:24]} 18. dxe4 {[%clk 00:38:34]} {[%emt
00:02:38]} Nf3+ {[%clk 00:36:50]} {[%emt 00:00:28]} 19. Kg2 {[%clk 00:38:36]}
{[%emt 00:00:08]} h5 {[%clk 00:36:41]} {[%emt 00:00:19]} 20. Nf5 {[%clk
00:38:23]} {[%emt 00:00:23]} Qb5 {[%clk 00:34:15]} {[%emt 00:02:37]} 21. Ne3
{[%clk 00:32:28]} {[%emt 00:06:03]} Bg5 {[%clk 00:33:42]} {[%emt 00:00:43]} 22.
a4 {[%clk 00:31:40]} {[%emt 00:00:58]} Qd7 {[%clk 00:32:35]} {[%emt 00:01:17]}
23. Nf5 {[%clk 00:31:35]} {[%emt 00:00:15]} Be7 {[%clk 00:31:46]} {[%emt
00:00:59]} 24. h4 {[%clk 00:31:23]} {[%emt 00:00:23]} Qc7 {[%clk 00:31:14]}
{[%emt 00:00:42]} 25. Be3 {[%clk 00:30:43]} {[%emt 00:00:50]} Kd7 {[%clk
00:31:00]} {[%emt 00:00:24]} 26. a5 {[%clk 00:30:28]} {[%emt 00:00:24]} Ke8
{[%clk 00:27:07]} {[%emt 00:04:03]} 27. Qa4+ {[%clk 00:28:54]} {[%emt
00:01:45]} Kf8 {[%clk 00:27:12]} {[%emt 00:00:05]} 28. b4 {[%clk 00:25:42]}
{[%emt 00:03:22]} cxb4 {[%clk 00:27:09]} {[%emt 00:00:13]} 29. Qxb4 {[%clk
00:24:37]} {[%emt 00:01:15]} Rc8 {[%clk 00:27:00]} {[%emt 00:00:19]} 30. Rab1
{[%clk 00:24:22]} {[%emt 00:00:25]} Re8 {[%clk 00:24:06]} {[%emt 00:03:04]} 31.
Rfc1 {[%clk 00:22:35]} {[%emt 00:01:56]} Rb8 {[%clk 00:22:12]} {[%emt
00:02:05]} 32. Bb6 {[%clk 00:22:14]} {[%emt 00:00:31]} Qd7 {[%clk 00:22:01]}
{[%emt 00:00:22]} 33. Ba7 {[%clk 00:22:16]} {[%emt 00:00:07]} Rd8 {[%clk
00:21:30]} {[%emt 00:00:41]} 34. Qxb7 {[%clk 00:22:21]} {[%emt 00:00:06]} Nd2
{[%clk 00:21:22]} {[%emt 00:00:17]} 35. Qxd7 {[%clk 00:22:23]} {[%emt
00:00:08]} Rxd7 {[%clk 00:21:32]} {[%emt 00:00:01]} 36. Rb8+ {[%clk 00:22:29]}
{[%emt 00:00:03]} Rd8 {[%clk 00:21:32]} {[%emt 00:00:09]} 37. Rxd8+ {[%clk
00:22:29]} {[%emt 00:00:10]} Bxd8 {[%clk 00:21:42]} {[%emt 00:00:01]} 38. Nxd6
{[%clk 00:20:59]} {[%emt 00:01:40]} Ke7 {[%clk 00:20:32]} {[%emt 00:01:20]} 39.
Bc5 {[%clk 00:17:54]} {[%emt 00:03:15]} Nb3 {[%clk 00:19:53]} {[%emt 00:00:48]}
40. Nb7+ {[%clk 00:18:03]} {[%emt 00:00:02]} Kd7 {[%clk 00:19:53]} {[%emt
00:00:10]} 41. Rb1 {[%clk 00:18:01]} {[%emt 00:00:12]} Nd2 {[%clk 00:19:50]}
{[%emt 00:00:13]} 42. Rb4 {[%clk 00:17:59]} {[%emt 00:00:11]} Bc7 {[%clk
00:19:39]} {[%emt 00:00:21]} 43. Be3 {[%clk 00:17:45]} {[%emt 00:00:24]} Nf3
{[%clk 00:18:21]} {[%emt 00:01:29]} 44. Nc5+ {[%clk 00:17:53]} {[%emt
00:00:01]} Kd6 {[%clk 00:18:12]} {[%emt 00:00:20]} 45. Nxa6 {[%clk 00:17:14]}
{[%emt 00:00:49]} Ra8 {[%clk 00:17:17]} {[%emt 00:01:05]} 46. Nxc7 {[%clk
00:16:58]} {[%emt 00:00:25]} Kxc7 {[%clk 00:17:24]} {[%emt 00:00:03]} 47. Kf1
{[%clk 00:16:25]} {[%emt 00:00:44]} Kc8 {[%clk 00:17:13]} {[%emt 00:00:22]} 48.
Rb5 {[%clk 00:16:25]} {[%emt 00:00:09]} Ra6 {[%clk 00:17:13]} {[%emt 00:00:09]}
49. c4 {[%clk 00:16:21]} {[%emt 00:00:14]} Rf6 {[%clk 00:17:11]} {[%emt
00:00:13]} 50. c5 {[%clk 00:16:04]} {[%emt 00:00:28]} Nd4 {[%clk 00:16:54]}
{[%emt 00:00:27]} 51. Bxd4 {[%clk 00:16:09]} {[%emt 00:00:03]} exd4 {[%clk
00:17:02]} {[%emt 00:00:02]} 52. Rb3 {[%clk 00:14:23]} {[%emt 00:01:57]} Kc7
{[%clk 00:16:36]} {[%emt 00:00:36]} 53. d6+ {[%clk 00:14:07]} {[%emt 00:00:26]}
Kc6 {[%clk 00:16:31]} {[%emt 00:00:15]} 54. a6 {[%clk 00:14:13]} {[%emt
00:00:04]} Re6 {[%clk 00:16:29]} {[%emt 00:00:12]} 55. a7 {[%clk 00:14:19]}
{[%emt 00:00:04]} Re8 {[%clk 00:16:37]} {[%emt 00:00:02]} 56. Rb8 {[%clk
00:14:25]} {[%emt 00:00:03]} Rxb8 {[%clk 00:16:46]} {[%emt 00:00:02]} 57.
axb8=Q {[%clk 00:14:29]} {[%emt 00:00:07]} 1-0